{"text_format":"3","workbook":"xlsx","n_sheets":26,"sheets":["Bắt đầu","1","2","3","4","5","6","7","8","9","10","11","12","13","14","15","16","17","18","19","20","21","22","23","24","Tìm hiểu thêm"],"not_rendered":{"images":24,"defined_names":5,"pivot_tables":19},"read":"whole","date_system":"1900"}

{"sheet":"Bắt đầu","index":0,"n_rows":5,"n_cols":1,"rows_kept":5}
["Chào mừng\nHướng dẫn dành cho bộ đọc màn hình: Tận dụng PivotTable nhiều hơn. Một PivotTable đơn giản sẽ cung cấp cho bạn tóm tắt tổng quan về dữ liệu nhưng đôi khi bạn cần các câu trả lời chi tiết cho các câu hỏi cụ thể. Đó là nơi mà việc thêm nhiều trường cột và trường hàng hơn có thể giúp ích. \nHướng dẫn sẽ cho bạn biết cần phải dẫn hướng đến ô nào để biết cách sử dụng một tính năng hay để đọc thêm thông tin.\nĐể bắt đầu, hãy nhấn CTRL+PAGE DOWN."]
["Tận dụng PivotTable nhiều hơn"]
["Một PivotTable đơn giản sẽ cung cấp cho bạn tóm tắt tổng quan về dữ liệu\nnhưng đôi khi bạn cần câu trả lời chi tiết cho các câu hỏi cụ thể. Đó là nơi \nmà việc thêm nhiều trường cột và trường hàng hơn có thể giúp ích."]
["ĐIỀU CẦN BIẾT\nBạn đã nhận hướng dẫn đầu tiên chưa? Nếu chưa, hãy đi tới Tệp > Mới và tìm Tạo PivotTable đầu tiên của bạn."]
["Quay lại đầu trang bằng cách nhấn CTRL+HOME. Để bắt đầu chuyến khám phá, hãy nhấn CTRL+PAGE DOWN."]

{"sheet":"1","index":1,"n_rows":16,"n_cols":9,"rows_kept":16}
["Trong hướng dẫn đầu tiên, chúng tôi đã giới thiệu về khái niệm của PivotTable cho bạn. Chúng tôi đã giải thích cách dùng trường hàng làm điều kiện phân tích một trường giá trị.   "]
["Các ô từ H10 đến I14 có chứa PivotTable giúp tóm tắt dữ liệu trong các ô B8 đến E16. PivotTable có hai cột: Người mua và Tổng của Số tiền. Cột Người mua có chứa các giá trị Cha, Kelly, Mẹ và Tổng cuối; Cột Tổng của Số tiền có chứa các giá trị 220 ₫, 270 ₫, 810 ₫ và 1.300 ₫. Cột Người mua được tạo từ trường Hàng và cột Tổng của Số tiền được tạo từ trường Giá trị."]
["Để tiếp tục với hướng dẫn này, hãy nhấn CTRL+PAGE DOWN. Để đi đến trang tính trước đó, nhấn CTRL+PAGE UP."]
[]
[]
[]
[]
[null,"Ngày","Người mua","Loại","Số tiền"]
["Ví dụ này trình bày cách trường hàng...","2017-01-01","Cha","Quà tặng",{"v":95,"d":"95 ₫"}]
["...phân tích trường giá trị.","2017-01-15","Mẹ","Thực phẩm",{"v":325,"d":"325 ₫"},null,null,"Người mua","Tổng của Số tiền"]
[null,"2017-01-17","Mẹ","Vé",{"v":250,"d":"250 ₫"},null,null,"Cha",{"v":220,"d":"220 ₫"}]
[null,"2017-01-21","Cha","Thực phẩm",{"v":125,"d":"125 ₫"},null,null,"Kelly",{"v":270,"d":"270 ₫"}]
[null,"2017-02-02","Mẹ","Thực phẩm",{"v":235,"d":"235 ₫"},null,null,"Mẹ",{"v":810,"d":"810 ₫"}]
[null,"2017-02-20","Kelly","Âm nhạc",{"v":20,"d":"20 ₫"},null,null,"Grand Total",{"v":1300,"d":"1,300 ₫"}]
[null,"2017-02-25","Kelly","Vé",{"v":125,"d":"125 ₫"}]
[null,"2017-02-25","Kelly","Thể thao",{"v":125,"d":"125 ₫"}]

{"sheet":"2","index":2,"n_rows":108,"n_cols":7,"rows_kept":108}
["Tuy nhiên, khi bạn xem PivotTable lần đầu, bạn có thể thấy rằng mình cần nhiều câu hỏi hơn trong số đó."]
["Khi bạn xem PivotTable lần đầu, có thể bạn sẽ có các câu hỏi như \"Những hoạt động mua này đã diễn ra khi nào?\", \"Mỗi người đã tiêu tiền vào những khoản gì?\", \"Mẹ đã mua món gì đắt đỏ?\"."]
["Trong ví dụ này, các ô từ F11 đến G15 hiển thị PivotTable hai cột giống như trước đây. Cột Người mua là một trường Hàng và có chứa các giá trị Cha, Kelly, Mẹ và Tổng cuối; Cột Tổng của Số tiền là trường Giá trị và có chứa các giá trị 220 ₫, 270 ₫, 810 ₫ và 1.300 ₫. "]
["Để tiếp tục với hướng dẫn này, hãy nhấn CTRL+PAGE DOWN. Để đi đến trang tính trước đó, nhấn CTRL+PAGE UP."]
[]
[]
[]
[]
[]
[]
[{"$nulls":5},"Người mua","Tổng của Số tiền"]
[{"$nulls":5},"Cha",{"v":220,"d":"220 ₫"}]
[{"$nulls":5},"Kelly",{"v":270,"d":"270 ₫"}]
[{"$nulls":5},"Mẹ",{"v":810,"d":"810 ₫"}]
[{"$nulls":5},"Grand Total",{"v":1300,"d":"1,300 ₫"}]
{"$rows_empty":84}
[null,"Ngày","Người mua","Loại","Số tiền"]
[null,"2017-01-01","Cha","Quà tặng",{"v":95,"d":"95 ₫"}]
[null,"2017-01-15","Mẹ","Thực phẩm",{"v":325,"d":"325 ₫"}]
[null,"2017-01-17","Mẹ","Vé",{"v":250,"d":"250 ₫"}]
[null,"2017-01-21","Cha","Thực phẩm",{"v":125,"d":"125 ₫"}]
[null,"2017-02-02","Mẹ","Thực phẩm",{"v":235,"d":"235 ₫"}]
[null,"2017-02-20","Kelly","Âm nhạc",{"v":20,"d":"20 ₫"}]
[null,"2017-02-25","Kelly","Vé",{"v":125,"d":"125 ₫"}]
[null,"2017-02-25","Kelly","Thể thao",{"v":125,"d":"125 ₫"}]

{"sheet":"3","index":3,"n_rows":108,"n_cols":7,"rows_kept":108}
["Tất cả những câu hỏi này đều rất hay nhưng hiện tại hãy tập trung vào một câu hỏi duy nhất."]
["Mỗi người đã tiêu tiền vào những khoản gì?"]
["Để tham khảo, các ô từ F11 đến G15 hiển thị PivotTable hai cột giống như trước đây. Cột Người mua là một trường Hàng và có chứa các giá trị Cha, Kelly, Mẹ và Tổng cuối; Cột Tổng của Số tiền là trường Giá trị và có chứa các giá trị 220 ₫, 270 ₫, 810 ₫ và 1.300 ₫. "]
["Để tiếp tục với hướng dẫn này, hãy nhấn CTRL+PAGE DOWN. Để đi đến trang tính trước đó, nhấn CTRL+PAGE UP."]
[]
[]
[]
[]
[]
[]
[{"$nulls":5},"Người mua","Tổng của Số tiền"]
[{"$nulls":5},"Cha",{"v":220,"d":"220 ₫"}]
[{"$nulls":5},"Kelly",{"v":270,"d":"270 ₫"}]
[{"$nulls":5},"Mẹ",{"v":810,"d":"810 ₫"}]
[{"$nulls":5},"Grand Total",{"v":1300,"d":"1,300 ₫"}]
{"$rows_empty":84}
[null,"Ngày","Người mua","Loại","Số tiền"]
[null,"2017-01-01","Cha","Quà tặng",{"v":95,"d":"95 ₫"}]
[null,"2017-01-15","Mẹ","Thực phẩm",{"v":325,"d":"325 ₫"}]
[null,"2017-01-17","Mẹ","Vé",{"v":250,"d":"250 ₫"}]
[null,"2017-01-21","Cha","Thực phẩm",{"v":125,"d":"125 ₫"}]
[null,"2017-02-02","Mẹ","Thực phẩm",{"v":235,"d":"235 ₫"}]
[null,"2017-02-20","Kelly","Âm nhạc",{"v":20,"d":"20 ₫"}]
[null,"2017-02-25","Kelly","Vé",{"v":125,"d":"125 ₫"}]
[null,"2017-02-25","Kelly","Thể thao",{"v":125,"d":"125 ₫"}]

{"sheet":"4","index":4,"n_rows":108,"n_cols":9,"rows_kept":108}
["Câu hỏi cuối cùng mà chúng tôi đặt ra là \"Mỗi người đã tiêu tiền vào những khoản gì?\""]
["Chúng tôi đã trả lời câu hỏi đó bằng cách thêm trường cột cho Loại. Kết quả là PivotTable hiện có năm cột mới hiển thị cho chúng ta loại mua mà mỗi người đã thực hiện. "]
["PivotTable mới của chúng tôi hiện bắt đầu từ ô C10 đến I15, với các cột Người mua, Thực phẩn, Âm nhạc, Thể thao, Vé, Quà tặng và Tổng cuối. Người mua và Tổng cuối giống như trước đây, cũng như các cột chi tiết mới nằm giữa chúng."]
["Để tiếp tục với hướng dẫn này, hãy nhấn CTRL+PAGE DOWN. Để đi đến trang tính trước đó, nhấn CTRL+PAGE UP."]
[]
[]
[]
[]
[]
[null,null,"Tổng của Số tiền","Loại"]
[null,null,"Người mua","Thực phẩm","Âm nhạc","Thể thao","Vé","Quà tặng","Grand Total"]
[null,null,"Cha",{"v":125,"d":"125 ₫"},{"$nulls":3},{"v":95,"d":"95 ₫"},{"v":220,"d":"220 ₫"}]
[null,null,"Kelly",null,{"v":20,"d":"20 ₫"},{"v":125,"d":"125 ₫"},{"v":125,"d":"125 ₫"},null,{"v":270,"d":"270 ₫"}]
[null,null,"Mẹ",{"v":560,"d":"560 ₫"},null,null,{"v":250,"d":"250 ₫"},null,{"v":810,"d":"810 ₫"}]
[null,null,"Grand Total",{"v":685,"d":"685 ₫"},{"v":20,"d":"20 ₫"},{"v":125,"d":"125 ₫"},{"v":375,"d":"375 ₫"},{"v":95,"d":"95 ₫"},{"v":1300,"d":"1,300 ₫"}]
{"$rows_empty":84}
[null,"Ngày","Người mua","Loại","Số tiền"]
[null,"2017-01-01","Cha","Quà tặng",{"v":95,"d":"95 ₫"}]
[null,"2017-01-15","Mẹ","Thực phẩm",{"v":325,"d":"325 ₫"}]
[null,"2017-01-17","Mẹ","Vé",{"v":250,"d":"250 ₫"}]
[null,"2017-01-21","Cha","Thực phẩm",{"v":125,"d":"125 ₫"}]
[null,"2017-02-02","Mẹ","Thực phẩm",{"v":235,"d":"235 ₫"}]
[null,"2017-02-20","Kelly","Âm nhạc",{"v":20,"d":"20 ₫"}]
[null,"2017-02-25","Kelly","Vé",{"v":125,"d":"125 ₫"}]
[null,"2017-02-25","Kelly","Thể thao",{"v":125,"d":"125 ₫"}]

{"sheet":"5","index":5,"n_rows":108,"n_cols":9,"rows_kept":108}
["Nếu PivotTable khó hiểu, hãy thử: Đọc từ bên trái, sau đó từ trên cùng, rồi xuống dưới. Trong ví dụ dưới đây, Cha nằm trong ô C12, Thực phẩm là 125 ₫ trong ô D12, Quà tặng là $95 trong ô E12 và Tổng cuối là 220 ₫ trong ô I12. Các hàng 13 và 14 hiển thị chi tiết cho Kelly và Mẹ, ngoài ra hàng 15 hiển thị Tổng cuối."]
["Để tiếp tục với hướng dẫn này, hãy nhấn CTRL+PAGE DOWN. Để đi đến trang tính trước đó, nhấn CTRL+PAGE UP."]
{"$rows_empty":7}
[null,null,"Tổng của Số tiền","Loại"]
[null,null,"Người mua","Thực phẩm","Quà tặng","Âm nhạc","Thể thao","Vé","Grand Total"]
[null,null,"Cha",{"v":125,"d":"125 ₫"},{"v":95,"d":"95 ₫"},{"$nulls":3},{"v":220,"d":"220 ₫"}]
[null,null,"Kelly",null,null,{"v":20,"d":"20 ₫"},{"v":125,"d":"125 ₫"},{"v":125,"d":"125 ₫"},{"v":270,"d":"270 ₫"}]
[null,null,"Mẹ",{"v":560,"d":"560 ₫"},{"$nulls":3},{"v":250,"d":"250 ₫"},{"v":810,"d":"810 ₫"}]
[null,null,"Grand Total",{"v":685,"d":"685 ₫"},{"v":95,"d":"95 ₫"},{"v":20,"d":"20 ₫"},{"v":125,"d":"125 ₫"},{"v":375,"d":"375 ₫"},{"v":1300,"d":"1,300 ₫"}]
{"$rows_empty":84}
[null,"Ngày","Người mua","Loại","Số tiền"]
[null,"2017-01-01","Cha","Quà tặng",{"v":95,"d":"95 ₫"}]
[null,"2017-01-15","Mẹ","Thực phẩm",{"v":325,"d":"325 ₫"}]
[null,"2017-01-17","Mẹ","Vé",{"v":250,"d":"250 ₫"}]
[null,"2017-01-21","Cha","Thực phẩm",{"v":125,"d":"125 ₫"}]
[null,"2017-02-02","Mẹ","Thực phẩm",{"v":235,"d":"235 ₫"}]
[null,"2017-02-20","Kelly","Âm nhạc",{"v":20,"d":"20 ₫"}]
[null,"2017-02-25","Kelly","Vé",{"v":125,"d":"125 ₫"}]
[null,"2017-02-25","Kelly","Thể thao",{"v":125,"d":"125 ₫"}]

{"sheet":"6","index":6,"n_rows":3,"n_cols":1,"rows_kept":3}
["Không thực hiện thao tác này ngay bây giờ nhưng trong một vài bước nữa, bạn sẽ làm việc với PivotTable. Thao tác đầu tiên bạn sẽ thực hiện là tạo chi tiết trong trường Cột. Bạn sẽ thực hiện thao tác đó bằng cách đặt trường Loại vào vùng trường Cột."]
["Hình ảnh Danh sách trường PivotTable hiển thị một con trỏ mũi tên kéo trường Loại tới vùng Cột."]
["Để tiếp tục với hướng dẫn này, hãy nhấn CTRL+PAGE DOWN. Để đi đến trang tính trước đó, nhấn CTRL+PAGE UP."]

{"sheet":"7","index":7,"n_rows":108,"n_cols":8,"rows_kept":108}
["1. Vùng PivotTable cho ví dụ này nằm trong các ô từ B13 đến C17. Dẫn hướng đến ô bất kỳ trong số các ô đó."]
["2. Nhấn ALT+JC, L2 để cho chạy Danh sách Trường PivotTable. Tiêu điểm sẽ mặc định là hộp văn bản Tìm kiếm: Chỉnh sửa \"Tìm kiếm\""]
["3. Nhấn các phím mũi tên của bạn để chọn trường Loại. Sau khi chọn, nhấn PHÍM CÁCH để thêm trường Loại vào vùng Hàng. "]
["4. Nhấn phím Tab để chọn trường Loại. Nhấn Enter, rồi nhấn phím mũi tên để chọn Di chuyển tời nhãn cột và nhấn Enter để thêm trường Loại vào khu vực Cột. Nhấn ALT+JC+L2 để cho thoát khỏi ngăn Trường PivotTable."]
["Để tiếp tục với hướng dẫn này, hãy nhấn CTRL+PAGE DOWN. Để đi đến trang tính trước đó, nhấn CTRL+PAGE UP."]
[]
[]
[]
[{"$nulls":7},{"$f":"IF(AND($B$14=\"Người mua\",$H$17=810),\"Bạn làm tốt lắm! Bạn đã đặt\",\" \")","v":" "}]
[{"$nulls":7},{"$f":"IF(AND($B$14=\"Người mua\",$H$17=810),\"trường cột đầu tiên. Bấm\",\" \")","v":" "}]
[{"$nulls":7},{"$f":"IF(AND($B$14=\"Người mua\",$H$17=810),\"vào Tiếp theo để tiếp tục...\",\" \")","v":" "}]
[]
[null,"Người mua","Tổng của Số tiền"]
[null,"Cha",{"v":220,"d":"220 ₫"}]
[null,"Kelly",{"v":270,"d":"270 ₫"}]
[null,"Mẹ",{"v":810,"d":"810 ₫"}]
[null,"Tổng Cuối",{"v":1300,"d":"1,300 ₫"}]
{"$rows_empty":82}
[null,"Ngày","Người mua","Loại","Số tiền"]
[null,"2017-01-01","Cha","Quà tặng",{"v":95,"d":"95 ₫"}]
[null,"2017-01-15","Mẹ","Thực phẩm",{"v":325,"d":"325 ₫"}]
[null,"2017-01-17","Mẹ","Vé",{"v":250,"d":"250 ₫"}]
[null,"2017-01-21","Cha","Thực phẩm",{"v":125,"d":"125 ₫"}]
[null,"2017-02-02","Mẹ","Thực phẩm",{"v":235,"d":"235 ₫"}]
[null,"2017-02-20","Kelly","Âm nhạc",{"v":20,"d":"20 ₫"}]
[null,"2017-02-25","Kelly","Vé",{"v":125,"d":"125 ₫"}]
[null,"2017-02-25","Kelly","Thể thao",{"v":125,"d":"125 ₫"}]

{"sheet":"8","index":8,"n_rows":108,"n_cols":9,"rows_kept":108}
["Hãy cùng xem lại PivotTable bạn vừa mới tạo nhưng lần này chúng tôi đã thêm một số màu đặc biệt để phân biệt các trường hàng, cột và giá trị."]
["Trường hàng bắt đầu từ ô C10 đến C13 và được tô bóng bằng màu vàng."]
["Trường cột bắt đầu từ ô D9 đến H10 và được đổ bóng bằng màu cam."]
["Trường giá trị bắt đầu từ ô D11 đến H13 và được đổ bóng bằng màu lam."]
["Để tiếp tục với hướng dẫn này, hãy nhấn CTRL+PAGE DOWN. Để đi đến trang tính trước đó, nhấn CTRL+PAGE UP."]
[]
[]
[]
[null,null,"Tổng của Số tiền","Loại"]
[null,null,"Người mua","Thực phẩm","Quà tặng","Âm nhạc","Thể thao","Vé","Grand Total"]
[null,null,"Cha",{"v":125,"d":"125 ₫"},{"v":95,"d":"95 ₫"},{"$nulls":3},{"v":220,"d":"220 ₫"}]
[null,null,"Kelly",null,null,{"v":20,"d":"20 ₫"},{"v":125,"d":"125 ₫"},{"v":125,"d":"125 ₫"},{"v":270,"d":"270 ₫"}]
[null,null,"Mẹ",{"v":560,"d":"560 ₫"},{"$nulls":3},{"v":250,"d":"250 ₫"},{"v":810,"d":"810 ₫"}]
[null,null,"Grand Total",{"v":685,"d":"685 ₫"},{"v":95,"d":"95 ₫"},{"v":20,"d":"20 ₫"},{"v":125,"d":"125 ₫"},{"v":375,"d":"375 ₫"},{"v":1300,"d":"1,300 ₫"}]
{"$rows_empty":85}
[null,"Ngày","Người mua","Loại","Số tiền"]
[null,"2017-01-01","Cha","Quà tặng",{"v":95,"d":"95 ₫"}]
[null,"2017-01-15","Mẹ","Thực phẩm",{"v":325,"d":"325 ₫"}]
[null,"2017-01-17","Mẹ","Vé",{"v":250,"d":"250 ₫"}]
[null,"2017-01-21","Cha","Thực phẩm",{"v":125,"d":"125 ₫"}]
[null,"2017-02-02","Mẹ","Thực phẩm",{"v":235,"d":"235 ₫"}]
[null,"2017-02-20","Kelly","Âm nhạc",{"v":20,"d":"20 ₫"}]
[null,"2017-02-25","Kelly","Vé",{"v":125,"d":"125 ₫"}]
[null,"2017-02-25","Kelly","Thể thao",{"v":125,"d":"125 ₫"}]

{"sheet":"9","index":9,"n_rows":3,"n_cols":1,"rows_kept":3}
["Dưới đây là một cách khác cần cân nhắc: Trường hàng nằm ở bên trái và trường cột nằm ở trên cùng. Mỗi trường trong số này cung cấp một điều kiện cho trường giá trị để tính tổng."]
["Hình ảnh khái niệm hiển thị một vùng hình chữ nhật có 4 phần với trường Hàng ở dưới cùng bên trái có màu vàng, trường Cột ở trên cùng bên phải có màu cam và trường Giá trị ở dưới cùng bên phải có màu lam."]
["Để tiếp tục với hướng dẫn này, hãy nhấn CTRL+PAGE DOWN. Để đi đến trang tính trước đó, nhấn CTRL+PAGE UP."]

{"sheet":"10","index":10,"n_rows":3,"n_cols":1,"rows_kept":3}
["Hãy cân nhắc tới cách đó khi sử dụng danh sách trường. Trường hàng nằm ở bên trái và trường cột nằm ở trên cùng. Mỗi trường trong số này cung cấp một điều kiện cho trường giá trị để tính tổng."]
["Hình ảnh khái niệm hiển thị Danh sách trường PivotTable được hiển thị cùng với trường Hàng ở dưới cùng bên trái có màu vàng, trường Cột ở trên cùng bên phải có màu cam và trường Giá trị ở dưới cùng bên phải có màu lam."]
["Để tiếp tục với hướng dẫn này, hãy nhấn CTRL+PAGE DOWN. Để đi đến trang tính trước đó, nhấn CTRL+PAGE UP."]

{"sheet":"11","index":11,"n_rows":121,"n_cols":24,"rows_kept":121}
["Điều cần biết: Nếu một trường cột thêm nhiều cột vào một PivotTable, trường đó sẽ khiến PivotTable trở nên rất rộng. "]
["Trong ví dụ này, PivotTable hiện có phạm vi từ ô C10 đến X15, khi trường cột đã thêm 20 cột mới. Có rất nhiều cột! Điều này sẽ khiến mọi người phải cuộn rất nhiều..."]
["Để tiếp tục với hướng dẫn này, hãy nhấn CTRL+PAGE DOWN. Để đi đến trang tính trước đó, nhấn CTRL+PAGE UP."]
[]
[]
[]
[]
[]
[]
[null,null,"Tổng của Số tiền","Loại"]
[null,null,"Người mua","Ăn tối","Âm nhạc","Bảo hiểm nhà ở","Bảo hiểm ô tô","Bảo hiểm y tế","Điện","Đỗ xe","Học nhạc","Nha khoa","Nhiên liệu","Phí câu lạc bộ","Quần áo","Sách","Thể thao","Thiết bị điện tử","Thuế","Thực phẩm","Vé","Vé máy bay","Y tế","Grand Total"]
[null,null,"Cha",{"$nulls":13},{"v":1000,"d":"1,000 ₫"},null,{"v":500,"d":"500 ₫"},null,null,{"v":500,"d":"500 ₫"},null,{"v":2000,"d":"2,000 ₫"}]
[null,null,"Kelly",{"v":20,"d":"20 ₫"},{"v":20,"d":"20 ₫"},{"$nulls":4},{"v":20,"d":"20 ₫"},{"v":250,"d":"250 ₫"},{"$nulls":3},{"v":125,"d":"125 ₫"},{"v":250,"d":"250 ₫"},null,{"v":125,"d":"125 ₫"},null,null,{"v":125,"d":"125 ₫"},null,null,{"v":935,"d":"935 ₫"}]
[null,null,"Mẹ",null,null,{"v":235,"d":"235 ₫"},{"v":74,"d":"74 ₫"},{"v":70,"d":"70 ₫"},{"v":70,"d":"70 ₫"},null,null,{"v":235,"d":"235 ₫"},{"v":74,"d":"74 ₫"},{"v":125,"d":"125 ₫"},{"$nulls":5},{"v":470,"d":"470 ₫"},null,null,{"v":74,"d":"74 ₫"},{"v":1427,"d":"1,427 ₫"}]
[null,null,"Grand Total",{"v":20,"d":"20 ₫"},{"v":20,"d":"20 ₫"},{"v":235,"d":"235 ₫"},{"v":74,"d":"74 ₫"},{"v":70,"d":"70 ₫"},{"v":70,"d":"70 ₫"},{"v":20,"d":"20 ₫"},{"v":250,"d":"250 ₫"},{"v":235,"d":"235 ₫"},{"v":74,"d":"74 ₫"},{"v":125,"d":"125 ₫"},{"v":125,"d":"125 ₫"},{"v":250,"d":"250 ₫"},{"v":1000,"d":"1,000 ₫"},{"v":125,"d":"125 ₫"},{"v":500,"d":"500 ₫"},{"v":470,"d":"470 ₫"},{"v":125,"d":"125 ₫"},{"v":500,"d":"500 ₫"},{"v":74,"d":"74 ₫"},{"v":4362,"d":"4,362 ₫"}]
{"$rows_empty":84}
[null,"Ngày","Người mua","Loại","Số tiền"]
[null,"2017-01-17","Cha","Thể thao",{"v":1000,"d":"1,000 ₫"}]
[null,"2017-01-17","Cha","Vé máy bay",{"v":500,"d":"500 ₫"}]
[null,"2017-01-17","Cha","Thuế",{"v":500,"d":"500 ₫"}]
[null,"2017-02-20","Kelly","Âm nhạc",{"v":20,"d":"20 ₫"}]
[null,"2017-02-25","Kelly","Vé",{"v":125,"d":"125 ₫"}]
[null,"2017-01-21","Kelly","Sách",{"v":250,"d":"250 ₫"}]
[null,"2017-02-20","Kelly","Ăn tối",{"v":20,"d":"20 ₫"}]
[null,"2017-02-25","Kelly","Quần áo",{"v":125,"d":"125 ₫"}]
[null,"2017-01-21","Kelly","Học nhạc",{"v":250,"d":"250 ₫"}]
[null,"2017-02-20","Kelly","Đỗ xe",{"v":20,"d":"20 ₫"}]
[null,"2017-02-25","Kelly","Thiết bị điện tử",{"v":125,"d":"125 ₫"}]
[null,"2017-01-01","Mẹ","Nhiên liệu",{"v":74,"d":"74 ₫"}]
[null,"2017-01-15","Mẹ","Thực phẩm",{"v":235,"d":"235 ₫"}]
[null,"2017-01-21","Mẹ","Phí câu lạc bộ",{"v":125,"d":"125 ₫"}]
[null,"2017-02-02","Mẹ","Thực phẩm",{"v":235,"d":"235 ₫"}]
[null,"2017-01-01","Mẹ","Y tế",{"v":74,"d":"74 ₫"}]
[null,"2017-01-15","Mẹ","Điện",{"v":70,"d":"70 ₫"}]
[null,"2017-02-02","Mẹ","Nha khoa",{"v":235,"d":"235 ₫"}]
[null,"2017-01-01","Mẹ","Bảo hiểm ô tô",{"v":74,"d":"74 ₫"}]
[null,"2017-01-15","Mẹ","Bảo hiểm y tế",{"v":70,"d":"70 ₫"}]
[null,"2017-02-02","Mẹ","Bảo hiểm nhà ở",{"v":235,"d":"235 ₫"}]

{"sheet":"12","index":12,"n_rows":119,"n_cols":5,"rows_kept":119}
["Có một biện pháp thay thế cho các PivotTable cực rộng: bạn có thể sử dụng một trường hàng thứ hai để thay vào đó. Trường hàng thứ hai sẽ xuất hiện thụt lề bên dưới trường hàng đầu tiên."]
["Trong ví dụ này, có một PivotTable từ ô D8 đến E32. PivotTable này hiển thị Cha, Kelly và Mẹ là các trường hàng đầu tiên trong cột D. Sau đó, các loại chi tiêu nằm bên dưới là các trường hàng thứ hai chứa mục như Thể thao, Vé máy bay, Ăn tối, v.v.."]
["ĐIỀU CẦN BIẾT\nTrường hàng thứ hai sẽ tạo một PivotTable theo hướng dọc chứ không phải hướng ngang. Một số người thấy các PivotTable dọc dễ đọc hơn vì chúng không cần phải cuộn nhiều lần từ hai bên."]
["EXCEL TÁN GẪU\nMột số người gọi trường hàng thứ hai là \"trường hàng phụ\"."]
["Để tiếp tục với hướng dẫn này, hãy nhấn CTRL+PAGE DOWN. Để đi đến trang tính trước đó, nhấn CTRL+PAGE UP."]
[]
[]
[{"$nulls":3},"Row Labels","Tổng của Số tiền"]
[{"$nulls":3},"Cha",{"v":2000,"d":"2,000 ₫"}]
[{"$nulls":3},"Thể thao",{"v":1000,"d":"1,000 ₫"}]
[{"$nulls":3},"Thuế",{"v":500,"d":"500 ₫"}]
[{"$nulls":3},"Vé máy bay",{"v":500,"d":"500 ₫"}]
[{"$nulls":3},"Kelly",{"v":935,"d":"935 ₫"}]
[{"$nulls":3},"Sách",{"v":250,"d":"250 ₫"}]
[{"$nulls":3},"Âm nhạc",{"v":20,"d":"20 ₫"}]
[{"$nulls":3},"Vé",{"v":125,"d":"125 ₫"}]
[{"$nulls":3},"Ăn tối",{"v":20,"d":"20 ₫"}]
[{"$nulls":3},"Đỗ xe",{"v":20,"d":"20 ₫"}]
[{"$nulls":3},"Quần áo",{"v":125,"d":"125 ₫"}]
[{"$nulls":3},"Thiết bị điện tử",{"v":125,"d":"125 ₫"}]
[{"$nulls":3},"Học nhạc",{"v":250,"d":"250 ₫"}]
[{"$nulls":3},"Mẹ",{"v":1427,"d":"1,427 ₫"}]
[{"$nulls":3},"Thực phẩm",{"v":470,"d":"470 ₫"}]
[{"$nulls":3},"Nhiên liệu",{"v":74,"d":"74 ₫"}]
[{"$nulls":3},"Điện",{"v":70,"d":"70 ₫"}]
[{"$nulls":3},"Y tế",{"v":74,"d":"74 ₫"}]
[{"$nulls":3},"Nha khoa",{"v":235,"d":"235 ₫"}]
[{"$nulls":3},"Bảo hiểm ô tô",{"v":74,"d":"74 ₫"}]
[{"$nulls":3},"Phí câu lạc bộ",{"v":125,"d":"125 ₫"}]
[{"$nulls":3},"Bảo hiểm y tế",{"v":70,"d":"70 ₫"}]
[{"$nulls":3},"Bảo hiểm nhà ở",{"v":235,"d":"235 ₫"}]
[{"$nulls":3},"Grand Total",{"v":4362,"d":"4,362 ₫"}]
{"$rows_empty":65}
[null,"Ngày","Người mua","Loại","Số tiền"]
[null,"2017-01-17","Cha","Thể thao",{"v":1000,"d":"1,000 ₫"}]
[null,"2017-01-17","Cha","Vé máy bay",{"v":500,"d":"500 ₫"}]
[null,"2017-01-17","Cha","Thuế",{"v":500,"d":"500 ₫"}]
[null,"2017-02-20","Kelly","Âm nhạc",{"v":20,"d":"20 ₫"}]
[null,"2017-02-25","Kelly","Vé",{"v":125,"d":"125 ₫"}]
[null,"2017-01-21","Kelly","Sách",{"v":250,"d":"250 ₫"}]
[null,"2017-02-20","Kelly","Ăn tối",{"v":20,"d":"20 ₫"}]
[null,"2017-02-25","Kelly","Quần áo",{"v":125,"d":"125 ₫"}]
[null,"2017-01-21","Kelly","Học nhạc",{"v":250,"d":"250 ₫"}]
[null,"2017-02-20","Kelly","Đỗ xe",{"v":20,"d":"20 ₫"}]
[null,"2017-02-25","Kelly","Thiết bị điện tử",{"v":125,"d":"125 ₫"}]
[null,"2017-01-01","Mẹ","Nhiên liệu",{"v":74,"d":"74 ₫"}]
[null,"2017-01-15","Mẹ","Thực phẩm",{"v":235,"d":"235 ₫"}]
[null,"2017-01-21","Mẹ","Phí câu lạc bộ",{"v":125,"d":"125 ₫"}]
[null,"2017-02-02","Mẹ","Thực phẩm",{"v":235,"d":"235 ₫"}]
[null,"2017-01-01","Mẹ","Y tế",{"v":74,"d":"74 ₫"}]
[null,"2017-01-15","Mẹ","Điện",{"v":70,"d":"70 ₫"}]
[null,"2017-02-02","Mẹ","Nha khoa",{"v":235,"d":"235 ₫"}]
[null,"2017-01-01","Mẹ","Bảo hiểm ô tô",{"v":74,"d":"74 ₫"}]
[null,"2017-01-15","Mẹ","Bảo hiểm y tế",{"v":70,"d":"70 ₫"}]
[null,"2017-02-02","Mẹ","Bảo hiểm nhà ở",{"v":235,"d":"235 ₫"}]

{"sheet":"13","index":13,"n_rows":3,"n_cols":1,"rows_kept":3}
["Trên trang tính tiếp theo, bạn sẽ thêm trường hàng thứ hai. Và bạn sẽ thực hiện thao tác đó bằng cách đặt trường Loại bên dưới trường Người mua trong trường Hàng."]
["Hình ảnh Danh sách trường PivotTable hiển thị một con trỏ mũi tên kéo trường Loại tới vùng Hàng."]
["Để tiếp tục với hướng dẫn này, hãy nhấn CTRL+PAGE DOWN. Để đi đến trang tính trước đó, nhấn CTRL+PAGE UP."]

{"sheet":"14","index":14,"n_rows":122,"n_cols":16384,"rows_kept":122,"flags":["row_too_large"]}
["1. Vùng PivotTable cho ví dụ này nằm trong các ô từ B13 đến C17. Dẫn hướng đến ô bất kỳ trong số các ô đó. "]
[{"$cut":{"chars":2718531,"head":""}}]
["3. Nhấn các phím mũi tên để di chuyển đến trường Loại. Nhấn PHÍM CÁCH để thêm trường Loại vào vùng Hàng. "]
["4. Nhấn phím ESC để thoát ngăn Trường PivotTable. "]
["Để tiếp tục với hướng dẫn này, hãy nhấn CTRL+PAGE DOWN. Để đi đến trang tính trước đó, nhấn CTRL+PAGE UP.",{"$nulls":7},{"$f":"IF(AND($B$15=\"Thể thao\",$C$36=74),\"Mọi việc đang tốt đẹp! Bạn\",\" \")","v":" "}]
[{"$nulls":8},{"$f":"IF(AND($B$15=\"Thể thao\",$C$36=74),\"đã thêm trường hàng thứ hai\",\" \")","v":" "}]
[{"$nulls":8},{"$f":"IF(AND($B$15=\"Thể thao\",$C$36=74),\"vào PivotTable. Cuộn xuống, \",\" \")","v":" "}]
[{"$nulls":8},{"$f":"IF(AND($B$15=\"Thể thao\",$C$36=74),\"rồi bấm vào Tiếp theo…\",\" \")","v":" "}]
[]
[]
[]
[]
[null,"Row Labels","Tổng của Số tiền"]
[null,"Cha",{"v":2000,"d":"2,000 ₫"}]
[null,"Kelly",{"v":935,"d":"935 ₫"}]
[null,"Mẹ",{"v":1427,"d":"1,427 ₫"}]
[null,"Grand Total",{"v":4362,"d":"4,362 ₫"}]
{"$rows_empty":83}
[null,"Ngày","Người mua","Loại","Số tiền"]
[null,"2017-01-17","Cha","Thể thao",{"v":1000,"d":"1,000 ₫"}]
[null,"2017-01-17","Cha","Vé máy bay",{"v":500,"d":"500 ₫"}]
[null,"2017-01-17","Cha","Thuế",{"v":500,"d":"500 ₫"}]
[null,"2017-02-20","Kelly","Âm nhạc",{"v":20,"d":"20 ₫"}]
[null,"2017-02-25","Kelly","Vé",{"v":125,"d":"125 ₫"}]
[null,"2017-01-21","Kelly","Sách",{"v":250,"d":"250 ₫"}]
[null,"2017-02-20","Kelly","Ăn tối",{"v":20,"d":"20 ₫"}]
[null,"2017-02-25","Kelly","Quần áo",{"v":125,"d":"125 ₫"}]
[null,"2017-01-21","Kelly","Học nhạc",{"v":250,"d":"250 ₫"}]
[null,"2017-02-20","Kelly","Đỗ xe",{"v":20,"d":"20 ₫"}]
[null,"2017-02-25","Kelly","Thiết bị điện tử",{"v":125,"d":"125 ₫"}]
[null,"2017-01-01","Mẹ","Nhiên liệu",{"v":74,"d":"74 ₫"}]
[null,"2017-01-15","Mẹ","Thực phẩm",{"v":235,"d":"235 ₫"}]
[null,"2017-01-21","Mẹ","Phí câu lạc bộ",{"v":125,"d":"125 ₫"}]
[null,"2017-02-02","Mẹ","Thực phẩm",{"v":235,"d":"235 ₫"}]
[null,"2017-01-01","Mẹ","Y tế",{"v":74,"d":"74 ₫"}]
[null,"2017-01-15","Mẹ","Điện",{"v":70,"d":"70 ₫"}]
[null,"2017-02-02","Mẹ","Nha khoa",{"v":235,"d":"235 ₫"}]
[null,"2017-01-01","Mẹ","Bảo hiểm ô tô",{"v":74,"d":"74 ₫"}]
[null,"2017-01-15","Mẹ","Bảo hiểm y tế",{"v":70,"d":"70 ₫"}]
[null,"2017-02-02","Mẹ","Bảo hiểm nhà ở",{"v":235,"d":"235 ₫"}]

{"sheet":"15","index":15,"n_rows":121,"n_cols":7,"rows_kept":121}
["Nếu cần đơn giản hóa PivotTable, bạn có thể thu gọn dữ liệu cho trường hàng thứ hai \"lên\" và biến mất. "]
["PivotTable cho ví dụ này nằm trong các ô từ F7 đến G31. Chọn ô F8 để chọn trường hàng đầu tiên cho Cha. Tiếp theo, nhấn Alt+JC > X để bung rộng trường thứ hai hoặc P để thu gọn trường này."]
["Để tiếp tục với hướng dẫn này, hãy nhấn CTRL+PAGE DOWN. Để đi đến trang tính trước đó, nhấn CTRL+PAGE UP."]
[]
[]
[{"$nulls":5},{"$f":"IF(AND($F$9=\"Kelly\",$G$9=935),\"Tuyệt!\",\" \")","v":" "}]
[{"$nulls":5},"Row Labels","Tổng của Số tiền"]
[{"$nulls":5},"Cha",{"v":2000,"d":"2,000 ₫"}]
[{"$nulls":5},"Thể thao",{"v":1000,"d":"1,000 ₫"}]
[{"$nulls":5},"Thuế",{"v":500,"d":"500 ₫"}]
[{"$nulls":5},"Vé máy bay",{"v":500,"d":"500 ₫"}]
[{"$nulls":5},"Kelly",{"v":935,"d":"935 ₫"}]
[{"$nulls":5},"Sách",{"v":250,"d":"250 ₫"}]
[{"$nulls":5},"Ăn tối",{"v":20,"d":"20 ₫"}]
[{"$nulls":5},"Thiết bị điện tử",{"v":125,"d":"125 ₫"}]
[{"$nulls":5},"Âm nhạc",{"v":20,"d":"20 ₫"}]
[{"$nulls":5},"Đỗ xe",{"v":20,"d":"20 ₫"}]
[{"$nulls":5},"Vé",{"v":125,"d":"125 ₫"}]
[{"$nulls":5},"Quần áo",{"v":125,"d":"125 ₫"}]
[{"$nulls":5},"Học nhạc",{"v":250,"d":"250 ₫"}]
[{"$nulls":5},"Mẹ",{"v":1427,"d":"1,427 ₫"}]
[{"$nulls":5},"Bảo hiểm ô tô",{"v":74,"d":"74 ₫"}]
[{"$nulls":5},"Nha khoa",{"v":235,"d":"235 ₫"}]
[{"$nulls":5},"Điện",{"v":70,"d":"70 ₫"}]
[{"$nulls":5},"Thực phẩm",{"v":470,"d":"470 ₫"}]
[{"$nulls":5},"Nhiên liệu",{"v":74,"d":"74 ₫"}]
[{"$nulls":5},"Y tế",{"v":74,"d":"74 ₫"}]
[{"$nulls":5},"Phí câu lạc bộ",{"v":125,"d":"125 ₫"}]
[{"$nulls":5},"Bảo hiểm y tế",{"v":70,"d":"70 ₫"}]
[{"$nulls":5},"Bảo hiểm nhà ở",{"v":235,"d":"235 ₫"}]
[{"$nulls":5},"Grand Total",{"v":4362,"d":"4,362 ₫"}]
{"$rows_empty":68}
[null,"Ngày","Người mua","Loại","Số tiền"]
[null,"2017-01-17","Cha","Thể thao",{"v":1000,"d":"1,000 ₫"}]
[null,"2017-01-17","Cha","Vé máy bay",{"v":500,"d":"500 ₫"}]
[null,"2017-01-17","Cha","Thuế",{"v":500,"d":"500 ₫"}]
[null,"2017-02-20","Kelly","Âm nhạc",{"v":20,"d":"20 ₫"}]
[null,"2017-02-25","Kelly","Vé",{"v":125,"d":"125 ₫"}]
[null,"2017-01-21","Kelly","Sách",{"v":250,"d":"250 ₫"}]
[null,"2017-02-20","Kelly","Ăn tối",{"v":20,"d":"20 ₫"}]
[null,"2017-02-25","Kelly","Quần áo",{"v":125,"d":"125 ₫"}]
[null,"2017-01-21","Kelly","Học nhạc",{"v":250,"d":"250 ₫"}]
[null,"2017-02-20","Kelly","Đỗ xe",{"v":20,"d":"20 ₫"}]
[null,"2017-02-25","Kelly","Thiết bị điện tử",{"v":125,"d":"125 ₫"}]
[null,"2017-01-01","Mẹ","Nhiên liệu",{"v":74,"d":"74 ₫"}]
[null,"2017-01-15","Mẹ","Thực phẩm",{"v":235,"d":"235 ₫"}]
[null,"2017-01-21","Mẹ","Phí câu lạc bộ",{"v":125,"d":"125 ₫"}]
[null,"2017-02-02","Mẹ","Thực phẩm",{"v":235,"d":"235 ₫"}]
[null,"2017-01-01","Mẹ","Y tế",{"v":74,"d":"74 ₫"}]
[null,"2017-01-15","Mẹ","Điện",{"v":70,"d":"70 ₫"}]
[null,"2017-02-02","Mẹ","Nha khoa",{"v":235,"d":"235 ₫"}]
[null,"2017-01-01","Mẹ","Bảo hiểm ô tô",{"v":74,"d":"74 ₫"}]
[null,"2017-01-15","Mẹ","Bảo hiểm y tế",{"v":70,"d":"70 ₫"}]
[null,"2017-02-02","Mẹ","Bảo hiểm nhà ở",{"v":235,"d":"235 ₫"}]

{"sheet":"16","index":16,"n_rows":121,"n_cols":7,"rows_kept":121}
["Bạn cũng có thể thu gọn hoặc bung rộng toàn bộ trường hàng thứ hai để có thể đơn giản hóa PivotTable hơn nữa."]
["Đây chính là then chốt"]
["Chọn dải dữ liệu PivotTable từ ô F7 đến G31, rồi đi tới ALT+JC > P để thu gọn toàn bộ nhóm. Ngược lại, ALT+JC > X sẽ bung rộng toàn bộ nhóm."]
["Để tiếp tục với hướng dẫn này, hãy nhấn CTRL+PAGE DOWN. Để đi đến trang tính trước đó, nhấn CTRL+PAGE UP."]
[]
[{"$nulls":5},{"$f":"IF(AND($F$9=\"Kelly\",$G$9=935),\"Chính xác!\",\" \")","v":" "}]
[{"$nulls":5},"Row Labels","Tổng của Số tiền"]
[{"$nulls":5},"Cha",{"v":2000,"d":"2,000 ₫"}]
[{"$nulls":5},"Thể thao",{"v":1000,"d":"1,000 ₫"}]
[{"$nulls":5},"Thuế",{"v":500,"d":"500 ₫"}]
[{"$nulls":5},"Vé máy bay",{"v":500,"d":"500 ₫"}]
[{"$nulls":5},"Kelly",{"v":935,"d":"935 ₫"}]
[{"$nulls":5},"Sách",{"v":250,"d":"250 ₫"}]
[{"$nulls":5},"Ăn tối",{"v":20,"d":"20 ₫"}]
[{"$nulls":5},"Thiết bị điện tử",{"v":125,"d":"125 ₫"}]
[{"$nulls":5},"Âm nhạc",{"v":20,"d":"20 ₫"}]
[{"$nulls":5},"Đỗ xe",{"v":20,"d":"20 ₫"}]
[{"$nulls":5},"Vé",{"v":125,"d":"125 ₫"}]
[{"$nulls":5},"Quần áo",{"v":125,"d":"125 ₫"}]
[{"$nulls":5},"Học nhạc",{"v":250,"d":"250 ₫"}]
[{"$nulls":5},"Mẹ",{"v":1427,"d":"1,427 ₫"}]
[{"$nulls":5},"Bảo hiểm ô tô",{"v":74,"d":"74 ₫"}]
[{"$nulls":5},"Nha khoa",{"v":235,"d":"235 ₫"}]
[{"$nulls":5},"Điện",{"v":70,"d":"70 ₫"}]
[{"$nulls":5},"Thực phẩm",{"v":470,"d":"470 ₫"}]
[{"$nulls":5},"Nhiên liệu",{"v":74,"d":"74 ₫"}]
[{"$nulls":5},"Y tế",{"v":74,"d":"74 ₫"}]
[{"$nulls":5},"Phí câu lạc bộ",{"v":125,"d":"125 ₫"}]
[{"$nulls":5},"Bảo hiểm y tế",{"v":70,"d":"70 ₫"}]
[{"$nulls":5},"Bảo hiểm nhà ở",{"v":235,"d":"235 ₫"}]
[{"$nulls":5},"Grand Total",{"v":4362,"d":"4,362 ₫"}]
{"$rows_empty":68}
[null,"Ngày","Người mua","Loại","Số tiền"]
[null,"2017-01-17","Cha","Thể thao",{"v":1000,"d":"1,000 ₫"}]
[null,"2017-01-17","Cha","Vé máy bay",{"v":500,"d":"500 ₫"}]
[null,"2017-01-17","Cha","Thuế",{"v":500,"d":"500 ₫"}]
[null,"2017-02-20","Kelly","Âm nhạc",{"v":20,"d":"20 ₫"}]
[null,"2017-02-25","Kelly","Vé",{"v":125,"d":"125 ₫"}]
[null,"2017-01-21","Kelly","Sách",{"v":250,"d":"250 ₫"}]
[null,"2017-02-20","Kelly","Ăn tối",{"v":20,"d":"20 ₫"}]
[null,"2017-02-25","Kelly","Quần áo",{"v":125,"d":"125 ₫"}]
[null,"2017-01-21","Kelly","Học nhạc",{"v":250,"d":"250 ₫"}]
[null,"2017-02-20","Kelly","Đỗ xe",{"v":20,"d":"20 ₫"}]
[null,"2017-02-25","Kelly","Thiết bị điện tử",{"v":125,"d":"125 ₫"}]
[null,"2017-01-01","Mẹ","Nhiên liệu",{"v":74,"d":"74 ₫"}]
[null,"2017-01-15","Mẹ","Thực phẩm",{"v":235,"d":"235 ₫"}]
[null,"2017-01-21","Mẹ","Phí câu lạc bộ",{"v":125,"d":"125 ₫"}]
[null,"2017-02-02","Mẹ","Thực phẩm",{"v":235,"d":"235 ₫"}]
[null,"2017-01-01","Mẹ","Y tế",{"v":74,"d":"74 ₫"}]
[null,"2017-01-15","Mẹ","Điện",{"v":70,"d":"70 ₫"}]
[null,"2017-02-02","Mẹ","Nha khoa",{"v":235,"d":"235 ₫"}]
[null,"2017-01-01","Mẹ","Bảo hiểm ô tô",{"v":74,"d":"74 ₫"}]
[null,"2017-01-15","Mẹ","Bảo hiểm y tế",{"v":70,"d":"70 ₫"}]
[null,"2017-02-02","Mẹ","Bảo hiểm nhà ở",{"v":235,"d":"235 ₫"}]

{"sheet":"17","index":17,"n_rows":107,"n_cols":13,"rows_kept":107}
["Bạn cũng có thể có nhiều hơn một trường cột. Bạn cũng có thể thu gọn hoặc bung rộng những trường này."]
["PivotTable cho ví dụ này bắt đầu từ ô B13 đến M19. Trong trường hợp này, chúng tôi có danh mục Loại trong mục Cột, bao gồm các mục cho Thực phẩm và Tiện ích."]
["HÃY THỬ CÁCH NÀY XEM\nChọn Thực phẩm trong ô C14, rồi đi tới ALT+JC > P để thu gọn toàn bộ trường. ALT+JC > X sẽ bung rộng trường đó."]
["Để tiếp tục với hướng dẫn này, hãy nhấn CTRL+PAGE DOWN. Để đi đến trang tính trước đó, nhấn CTRL+PAGE UP."]
{"$rows_empty":7}
[null,null,{"$f":"IF(AND($C$16=398,$D$15=\"Thg1\"),\"Bạn làm tuyệt lắm!\",\" \")","v":" "}]
[null,"Tổng của Số tiền","Column Labels"]
[null,null,"Thực phẩm",{"$nulls":3},"Thực phẩm Total","Tiện ích",{"$nulls":3},"Tiện ích Total","Grand Total"]
[null,"Row Labels","Thg1","Thg2","Thg3","Thg4",null,"Thg1","Thg2","Thg3","Thg4"]
[null,"Kelly",{"v":74,"d":"74 ₫"},{"v":74,"d":"74 ₫"},{"v":125,"d":"125 ₫"},{"v":125,"d":"125 ₫"},{"v":398,"d":"398 ₫"},{"$nulls":5},{"v":398,"d":"398 ₫"}]
[null,"Cha",{"v":235,"d":"235 ₫"},{"v":235,"d":"235 ₫"},{"v":235,"d":"235 ₫"},{"v":74,"d":"74 ₫"},{"v":779,"d":"779 ₫"},{"$nulls":5},{"v":779,"d":"779 ₫"}]
[null,"Mẹ",{"$nulls":5},{"v":1000,"d":"1,000 ₫"},{"v":1000,"d":"1,000 ₫"},{"v":20,"d":"20 ₫"},{"v":70,"d":"70 ₫"},{"v":2090,"d":"2,090 ₫"},{"v":2090,"d":"2,090 ₫"}]
[null,"Grand Total",{"v":309,"d":"309 ₫"},{"v":309,"d":"309 ₫"},{"v":360,"d":"360 ₫"},{"v":199,"d":"199 ₫"},{"v":1177,"d":"1,177 ₫"},{"v":1000,"d":"1,000 ₫"},{"v":1000,"d":"1,000 ₫"},{"v":20,"d":"20 ₫"},{"v":70,"d":"70 ₫"},{"v":2090,"d":"2,090 ₫"},{"v":3267,"d":"3,267 ₫"}]
{"$rows_empty":75}
[null,"Tháng","Người mua","Loại","Số tiền"]
[null,"Thg1","Kelly","Thực phẩm",{"v":74,"d":"74 ₫"}]
[null,"Thg1","Cha","Thực phẩm",{"v":235,"d":"235 ₫"}]
[null,"Thg1","Mẹ","Tiện ích",{"v":1000,"d":"1,000 ₫"}]
[null,"Thg2","Kelly","Thực phẩm",{"v":74,"d":"74 ₫"}]
[null,"Thg2","Cha","Thực phẩm",{"v":235,"d":"235 ₫"}]
[null,"Thg2","Mẹ","Tiện ích",{"v":1000,"d":"1,000 ₫"}]
[null,"Thg3","Kelly","Thực phẩm",{"v":125,"d":"125 ₫"}]
[null,"Thg3","Cha","Thực phẩm",{"v":235,"d":"235 ₫"}]
[null,"Thg3","Mẹ","Tiện ích",{"v":20,"d":"20 ₫"}]
[null,"Thg4","Kelly","Thực phẩm",{"v":125,"d":"125 ₫"}]
[null,"Thg4","Cha","Thực phẩm",{"v":74,"d":"74 ₫"}]
[null,"Thg4","Mẹ","Tiện ích",{"v":70,"d":"70 ₫"}]

{"sheet":"18","index":18,"n_rows":146,"n_cols":16384,"rows_kept":146,"flags":["row_too_large"]}
["Điều cần ghi nhớ: Nếu cần thêm chi tiết, bạn có thể thêm nhiều trường hàng hoặc trường cột. Trong ví dụ này, có ba trường hàng."]
[{"$cut":{"chars":2639230,"head":""}}]
["MẸO CỦA CHUYÊN GIA\nChỉ bởi bạn có thể thêm nhiều trường không có nghĩa là bạn nên thêm nhiều trường. Trong ví dụ này, điều đó thể hiện rất rõ. Tuy nhiên, đôi khi có quá nhiều trường kèm theo thụt lề có thể khiến người khác thấy PivotTable quá phức tạp để hiểu. "]
["Để tiếp tục với hướng dẫn này, hãy nhấn CTRL+PAGE DOWN. Để đi đến trang tính trước đó, nhấn CTRL+PAGE UP."]
[]
[]
[]
[{"$nulls":3},"Row Labels","Tổng của Số tiền"]
[{"$nulls":3},"Mùa thu",{"v":5425,"d":"5,425 ₫"}]
[{"$nulls":3},"Mẹ",{"v":5425,"d":"5,425 ₫"}]
[{"$nulls":3},"Bảo hiểm",{"v":1272,"d":"1,272 ₫"}]
[{"$nulls":3},"Tiền thuê",{"v":3220,"d":"3,220 ₫"}]
[{"$nulls":3},"Tiện ích",{"v":933,"d":"933 ₫"}]
[{"$nulls":3},"Mùa xuân",{"v":4760,"d":"4,760 ₫"}]
[{"$nulls":3},"Cha",{"v":4760,"d":"4,760 ₫"}]
[{"$nulls":3},"Bảo hiểm",{"v":1040,"d":"1,040 ₫"}]
[{"$nulls":3},"Tiền thuê",{"v":2400,"d":"2,400 ₫"}]
[{"$nulls":3},"Tiện ích",{"v":1320,"d":"1,320 ₫"}]
[{"$nulls":3},"Mùa hạ",{"v":3473,"d":"3,473 ₫"}]
[{"$nulls":3},"Mẹ",{"v":3473,"d":"3,473 ₫"}]
[{"$nulls":3},"Bảo hiểm",{"v":1080,"d":"1,080 ₫"}]
[{"$nulls":3},"Tiền thuê",{"v":1260,"d":"1,260 ₫"}]
[{"$nulls":3},"Tiện ích",{"v":1133,"d":"1,133 ₫"}]
[{"$nulls":3},"Mùa đông",{"v":4100,"d":"4,100 ₫"}]
[{"$nulls":3},"Cha",{"v":4100,"d":"4,100 ₫"}]
[{"$nulls":3},"Bảo hiểm",{"v":1030,"d":"1,030 ₫"}]
[{"$nulls":3},"Tiền thuê",{"v":1420,"d":"1,420 ₫"}]
[{"$nulls":3},"Tiện ích",{"v":1650,"d":"1,650 ₫"}]
[{"$nulls":3},"Grand Total",{"v":17758,"d":"17,758 ₫"}]
{"$rows_empty":68}
[null,"Người mua","Mùa","Loại","Số tiền"]
[null,"Cha","Mùa đông","Bảo hiểm",{"v":300,"d":"300 ₫"}]
[null,"Cha","Mùa đông","Tiền thuê",{"v":200,"d":"200 ₫"}]
[null,"Cha","Mùa đông","Tiện ích",{"v":400,"d":"400 ₫"}]
[null,"Cha","Mùa đông","Bảo hiểm",{"v":300,"d":"300 ₫"}]
[null,"Cha","Mùa đông","Tiền thuê",{"v":800,"d":"800 ₫"}]
[null,"Cha","Mùa đông","Tiện ích",{"v":400,"d":"400 ₫"}]
[null,"Cha","Mùa đông","Bảo hiểm",{"v":200,"d":"200 ₫"}]
[null,"Cha","Mùa đông","Tiền thuê",{"v":300,"d":"300 ₫"}]
[null,"Cha","Mùa đông","Tiện ích",{"v":450,"d":"450 ₫"}]
[null,"Cha","Mùa đông","Bảo hiểm",{"v":230,"d":"230 ₫"}]
[null,"Cha","Mùa đông","Tiền thuê",{"v":120,"d":"120 ₫"}]
[null,"Cha","Mùa đông","Tiện ích",{"v":400,"d":"400 ₫"}]
[null,"Cha","Mùa xuân","Bảo hiểm",{"v":210,"d":"210 ₫"}]
[null,"Cha","Mùa xuân","Tiền thuê",{"v":300,"d":"300 ₫"}]
[null,"Cha","Mùa xuân","Tiện ích",{"v":400,"d":"400 ₫"}]
[null,"Cha","Mùa xuân","Bảo hiểm",{"v":230,"d":"230 ₫"}]
[null,"Cha","Mùa xuân","Tiền thuê",{"v":900,"d":"900 ₫"}]
[null,"Cha","Mùa xuân","Tiện ích",{"v":300,"d":"300 ₫"}]
[null,"Cha","Mùa xuân","Bảo hiểm",{"v":200,"d":"200 ₫"}]
[null,"Cha","Mùa xuân","Tiền thuê",{"v":1000,"d":"1,000 ₫"}]
[null,"Cha","Mùa xuân","Tiện ích",{"v":220,"d":"220 ₫"}]
[null,"Cha","Mùa xuân","Bảo hiểm",{"v":400,"d":"400 ₫"}]
[null,"Cha","Mùa xuân","Tiền thuê",{"v":200,"d":"200 ₫"}]
[null,"Cha","Mùa xuân","Tiện ích",{"v":400,"d":"400 ₫"}]
[null,"Mẹ","Mùa hạ","Bảo hiểm",{"v":100,"d":"100 ₫"}]
[null,"Mẹ","Mùa hạ","Tiền thuê",{"v":30,"d":"30 ₫"}]
[null,"Mẹ","Mùa hạ","Tiện ích",{"v":123,"d":"123 ₫"}]
[null,"Mẹ","Mùa hạ","Bảo hiểm",{"v":300,"d":"300 ₫"}]
[null,"Mẹ","Mùa hạ","Tiền thuê",{"v":350,"d":"350 ₫"}]
[null,"Mẹ","Mùa hạ","Tiện ích",{"v":230,"d":"230 ₫"}]
[null,"Mẹ","Mùa hạ","Bảo hiểm",{"v":120,"d":"120 ₫"}]
[null,"Mẹ","Mùa hạ","Tiền thuê",{"v":640,"d":"640 ₫"}]
[null,"Mẹ","Mùa hạ","Tiện ích",{"v":530,"d":"530 ₫"}]
[null,"Mẹ","Mùa hạ","Bảo hiểm",{"v":560,"d":"560 ₫"}]
[null,"Mẹ","Mùa hạ","Tiền thuê",{"v":240,"d":"240 ₫"}]
[null,"Mẹ","Mùa hạ","Tiện ích",{"v":250,"d":"250 ₫"}]
[null,"Mẹ","Mùa thu","Bảo hiểm",{"v":62,"d":"62 ₫"}]
[null,"Mẹ","Mùa thu","Tiền thuê",{"v":600,"d":"600 ₫"}]
[null,"Mẹ","Mùa thu","Tiện ích",{"v":340,"d":"340 ₫"}]
[null,"Mẹ","Mùa thu","Bảo hiểm",{"v":205,"d":"205 ₫"}]
[null,"Mẹ","Mùa thu","Tiền thuê",{"v":500,"d":"500 ₫"}]
[null,"Mẹ","Mùa thu","Tiện ích",{"v":403,"d":"403 ₫"}]
[null,"Mẹ","Mùa thu","Bảo hiểm",{"v":503,"d":"503 ₫"}]
[null,"Mẹ","Mùa thu","Tiền thuê",{"v":2000,"d":"2,000 ₫"}]
[null,"Mẹ","Mùa thu","Tiện ích",{"v":140,"d":"140 ₫"}]
[null,"Mẹ","Mùa thu","Bảo hiểm",{"v":502,"d":"502 ₫"}]
[null,"Mẹ","Mùa thu","Tiền thuê",{"v":120,"d":"120 ₫"}]
[null,"Mẹ","Mùa thu","Tiện ích",{"v":50,"d":"50 ₫"}]

{"sheet":"19","index":19,"n_rows":55,"n_cols":5,"rows_kept":55}
["Bạn đã sẵn sàng thực hành thêm chưa? Thử xem lại dữ liệu dưới đây trong các ô từ B7 đến E55. Khi bạn sẵn sàng, hãy đi tới trang tính tiếp theo và bạn sẽ thực hành những điều đã biết được cho đến nay. "]
["Không cần xem lại tất cả các hàng dữ liệu. Chỉ cần xem lại tên trường trong hàng 7. Bạn sẽ được làm việc với những mục này ở trang tính tiếp theo. "]
["Để tiếp tục với hướng dẫn này, hãy nhấn CTRL+PAGE DOWN. Để đi đến trang tính trước đó, nhấn CTRL+PAGE UP."]
[]
[]
[]
[null,"Mùa","Đại diện bán hàng","Sản phẩm","Số lượng mặt hàng đã bán"]
[null,"Mùa đông","Jenny","Cam",300]
[null,"Mùa đông","George","Bưởi chùm",200]
[null,"Mùa đông","Dave","Táo",400]
[null,"Mùa đông","Jenny","Chuối",300]
[null,"Mùa đông","George","Cam",800]
[null,"Mùa đông","Dave","Bưởi chùm",400]
[null,"Mùa đông","Jenny","Táo",200]
[null,"Mùa đông","George","Chuối",300]
[null,"Mùa đông","Dave","Cam",450]
[null,"Mùa đông","Jenny","Bưởi chùm",230]
[null,"Mùa đông","George","Táo",120]
[null,"Mùa đông","Dave","Chuối",400]
[null,"Mùa xuân","Jenny","Củ dền",210]
[null,"Mùa xuân","George","Khoai tây",300]
[null,"Mùa xuân","Dave","Rau diếp",400]
[null,"Mùa xuân","Jenny","Củ cải",230]
[null,"Mùa xuân","George","Củ dền",900]
[null,"Mùa xuân","Dave","Khoai tây",300]
[null,"Mùa xuân","Jenny","Rau diếp",200]
[null,"Mùa xuân","George","Củ cải",1000]
[null,"Mùa xuân","Dave","Củ dền",220]
[null,"Mùa xuân","Jenny","Khoai tây",400]
[null,"Mùa xuân","George","Rau diếp",200]
[null,"Mùa xuân","Dave","Củ cải",400]
[null,"Mùa hạ","Jenny","Việt quất",100]
[null,"Mùa hạ","George","Dâu tây",30]
[null,"Mùa hạ","Dave","Nho",123]
[null,"Mùa hạ","Jenny","Bí ngô",300]
[null,"Mùa hạ","George","Việt quất",350]
[null,"Mùa hạ","Dave","Dâu tây",230]
[null,"Mùa hạ","Jenny","Nho",120]
[null,"Mùa hạ","George","Bí ngô",640]
[null,"Mùa hạ","Dave","Việt quất",530]
[null,"Mùa hạ","Jenny","Dâu tây",560]
[null,"Mùa hạ","George","Nho",240]
[null,"Mùa hạ","Dave","Bí ngô",250]
[null,"Mùa thu","Jenny","Bí đao",62]
[null,"Mùa thu","George","Bí xanh",600]
[null,"Mùa thu","Dave","Táo",340]
[null,"Mùa thu","Jenny","Cam",205]
[null,"Mùa thu","George","Bí đao",500]
[null,"Mùa thu","Dave","Bí xanh",403]
[null,"Mùa thu","Jenny","Táo",503]
[null,"Mùa thu","George","Cam",2000]
[null,"Mùa thu","Dave","Bí đao",140]
[null,"Mùa thu","Jenny","Bí xanh",502]
[null,"Mùa thu","George","Táo",120]
[null,"Mùa thu","Dave","Cam",50]

{"sheet":"20","index":20,"n_rows":17,"n_cols":8,"rows_kept":17}
["1. Vùng PivotTable cho ví dụ này nằm trong các ô từ B12 đến C17. Dẫn hướng đến ô bất kỳ trong số các ô đó. \n\n"]
["2. Nhấn ALT+JC, L2 để cho chạy Danh sách Trường PivotTable. Tiêu điểm sẽ mặc định là hộp văn bản Tìm kiếm: \"Nhập từ để tìm kiếm\" chỉnh sửa. Không nhập bất cứ nội dung nào, thay vào đó, hãy nhấn tab một lần. LƯU Ý: nếu Danh sách trường không cho chạy, nhấn ALT+JC, L2 một lần nữa."]
["3. Nhấn các phím mũi tên để di chuyển đến trường Đại diện bán hàng. Nhấn PHÍM CÁCH để thêm trường Đại diện bán hàng vào vùng Hàng. Nếu bạn muốn hiển thị chi tiết Đại diện bán hàng trong vùng Cột, hãy sử dụng các phím Tab để di chuyển đến trường Đại diện bán hàng trong mục Hàng, rồi nhấn PHÍM CÁCH và chọn \"Di chuyển tời Nhãn cột\". Nhấn phím ESC để thoát ngăn Trường PivotTable. "]
["4. Xác định người đã bán được nhiều mặt hàng nhất trong mùa thu, rồi chọn trong ô H8. "]
["Để tiếp tục với hướng dẫn này, hãy nhấn CTRL+PAGE DOWN. Để đi đến trang tính trước đó, nhấn CTRL+PAGE UP."]
[]
[{"$nulls":7},"Chọn một:"]
[]
[{"$nulls":7},{"$f":"IF($H$8=\"George\",\"Đúng rồi!\",IF($H$8=\"Dave\",\"Thử lại...\",IF($H$8=\"Jenny\",\"Không hẳn vậy...\",IF($H$8=\" \",\" \",\" \"))))","v":" "}]
[]
[]
[null,"Row Labels","Tổng của Số lượng mặt hàng đã bán"]
[null,"Mùa thu",{"v":5425,"d":"5,425"}]
[null,"Mùa xuân",{"v":4760,"d":"4,760"}]
[null,"Mùa hạ",{"v":3473,"d":"3,473"}]
[null,"Mùa đông",{"v":4100,"d":"4,100"}]
[null,"Grand Total",{"v":17758,"d":"17,758"}]

{"sheet":"21","index":21,"n_rows":14,"n_cols":10,"rows_kept":14}
["1. Bấm vào ô B13 để kích hoạt PivotTable có tên \"Tổng của Số lượng mặt hàng đã bán\".\n\n"]
["2. Nhấn ALT+JC, L2 để cho chạy Danh sách Trường PivotTable. Tiêu điểm sẽ mặc định là hộp văn bản Tìm kiếm: \"Nhập từ để tìm kiếm\" chỉnh sửa. Không nhập bất cứ nội dung nào, thay vào đó, hãy nhấn tab một lần. LƯU Ý: nếu Danh sách trường không cho chạy, nhấn ALT+JC, L2 một lần nữa."]
["3. Sử dụng các phím mũi tên và PHÍM CÁCH để bung rộng ví dụ thành một PivotTable dọc có các mùa ở bên trái và đại diện bán hàng được thụt lề bên dưới các mùa. Nhấn phím ESC để thoát khỏi ngăn Trường PivotTable. "]
["Để tiếp tục với hướng dẫn này, hãy nhấn CTRL+PAGE DOWN. Để đi đến trang tính trước đó, nhấn CTRL+PAGE UP."]
[{"$nulls":9},{"$f":"IF(AND(B$14=\"Mùa đông\",$C$17=1030),\"Bạn làm tốt lắm! Bạn đã đặt\",\" \")","v":" "}]
[{"$nulls":9},{"$f":"IF(AND(B$14=\"Mùa đông\",$C$17=1030),\"trường hàng phụ. Bây giờ, cuộn\",\" \")","v":" "}]
[{"$nulls":9},{"$f":"IF(AND(B$14=\"Mùa đông\",$C$17=1030),\"xuống và bấm vào Tiếp theo.\",\" \")","v":" "}]
[]
[]
[]
[]
[]
[null,"Tổng của Số lượng mặt hàng đã bán"]
[null,{"v":17758,"d":"17,758"}]

{"sheet":"22","index":22,"n_rows":14,"n_cols":10,"rows_kept":14}
["1. Bấm vào ô B13 để kích hoạt PivotTable có tên \"Tổng của Số lượng mặt hàng đã bán\"."]
["2. Nhấn ALT+JC, L2 để cho chạy Danh sách Trường PivotTable. Tiêu điểm sẽ mặc định là hộp văn bản Tìm kiếm: \"Nhập từ để tìm kiếm\" chỉnh sửa. Không nhập bất cứ nội dung nào, thay vào đó, hãy nhấn tab một lần. LƯU Ý: nếu Danh sách trường không cho chạy, nhấn ALT+JC, L2 một lần nữa."]
["3. Sử dụng các phím mũi tên, PHÍM CÁCH để sửa đổi ví dụ nhằm hiển thị từng sản phẩm trong hàng riêng và mỗi mùa nằm trong một cột riêng."]
["Để tiếp tục với hướng dẫn này, hãy nhấn CTRL+PAGE DOWN. Để đi đến trang tính trước đó, nhấn CTRL+PAGE UP.",{"$nulls":8},{"$f":"IF(AND($B$15=\"Bí đao\",$G$28=980),\"Bạn làm tốt lắm! Bạn đã\",\" \")","v":" "}]
[{"$nulls":9},{"$f":"IF(AND($B$15=\"Bí đao\",$G$28=980),\"đặt một trường hàng ở bên\",\" \")","v":" "}]
[{"$nulls":9},{"$f":"IF(AND($B$15=\"Bí đao\",$G$28=980),\"trái và một trường cột có\",\" \")","v":" "}]
[{"$nulls":9},{"$f":"IF(AND($B$15=\"Bí đao\",$G$28=980),\"bốn cột mới. Cuộn xuống\",\" \")","v":" "}]
[{"$nulls":9},{"$f":"IF(AND($B$15=\"Táo\",$G$28=1505),\"và bấm vào Tiếp theo...\",\" \")","v":" "}]
[]
[]
[]
[]
[null,"Tổng của Số lượng mặt hàng đã bán"]
[null,{"v":17758,"d":"17,758"}]

{"sheet":"23","index":23,"n_rows":16,"n_cols":18,"rows_kept":16}
["1. Bấm vào ô B13 để kích hoạt PivotTable có tên \"Tổng số mặt hàng đã bán\".\n\n"]
["2. Nhấn ALT+JC, L2 để cho chạy Danh sách Trường PivotTable. Tiêu điểm sẽ mặc định là hộp văn bản Tìm kiếm: \"Nhập từ để tìm kiếm\" chỉnh sửa. Không nhập bất cứ nội dung nào, thay vào đó, hãy nhấn tab một lần. LƯU Ý: nếu Danh sách trường không cho chạy, nhấn ALT+JC, L2 một lần nữa."]
["3. Sử dụng các phím Tab, mũi tên và PHÍM CÁCH để sửa đổi ví dụ nhằm hiển thị Đại diện bán hàng ở bên trái với các Mùa được thụt lề bên dưới chúng."]
["Để tiếp tục với hướng dẫn này, hãy nhấn CTRL+PAGE DOWN. Để đi đến trang tính trước đó, nhấn CTRL+PAGE UP."]
[{"$nulls":9},{"$f":"IF(AND($B$14=\"Dave\",$C$14=5036),\"Bạn làm tốt lắm! Giờ đây, dữ liệu\",\" \")","v":" "}]
[{"$nulls":9},{"$f":"IF(AND($B$14=\"Dave\",$C$14=5036),\"đã trở nên dễ đọc hơn. Cuộn\",\" \")","v":" "}]
[{"$nulls":9},{"$f":"IF(AND($B$14=\"Dave\",$C$14=5036),\"xuống và bấm vào Tiếp theo...\",\" \")","v":" "}]
[]
[]
[]
[]
[]
[null,null,"Column Labels"]
[null,null,"Dave",{"$nulls":3},"Dave Total","George",{"$nulls":3},"George Total","Jenny",{"$nulls":3},"Jenny Total","Grand Total"]
[null,null,"Mùa thu","Mùa xuân","Mùa hạ","Mùa đông",null,"Mùa thu","Mùa xuân","Mùa hạ","Mùa đông",null,"Mùa thu","Mùa xuân","Mùa hạ","Mùa đông"]
[null,"Tổng của Số lượng mặt hàng đã bán",933,{"v":1320,"d":"1,320"},{"v":1133,"d":"1,133"},{"v":1650,"d":"1,650"},{"v":5036,"d":"5,036"},{"v":3220,"d":"3,220"},{"v":2400,"d":"2,400"},{"v":1260,"d":"1,260"},{"v":1420,"d":"1,420"},{"v":8300,"d":"8,300"},{"v":1272,"d":"1,272"},{"v":1040,"d":"1,040"},{"v":1080,"d":"1,080"},{"v":1030,"d":"1,030"},{"v":4422,"d":"4,422"},{"v":17758,"d":"17,758"}]

{"sheet":"24","index":24,"n_rows":14,"n_cols":7,"rows_kept":14}
["1. Bấm vào ô B13 để kích hoạt PivotTable có tên \"Tổng của Số lượng mặt hàng đã bán\"."]
["2. Nhấn ALT+JC, L2 để cho chạy Danh sách Trường PivotTable. Tiêu điểm sẽ mặc định là hộp văn bản Tìm kiếm: \"Nhập từ để tìm kiếm\" chỉnh sửa. Không nhập bất cứ nội dung nào, thay vào đó, hãy nhấn tab một lần. LƯU Ý: nếu Danh sách trường không cho chạy, nhấn ALT+JC, L2 một lần nữa."]
["3. Sử dụng các phím Tab, mũi tên và PHÍM CÁCH để sửa đổi ví dụ sao cho mỗi Đại diện bán hàng có các trường cột của riêng họ với các Mùa ở bên trái và Sản phẩm được thụt lề ở dưới chúng."]
["4. Chọn ô G9, rồi chọn số lượng bưởi chùm mà Dave đã bán được trong mùa đông."]
["Để tiếp tục với hướng dẫn này, hãy nhấn CTRL+PAGE DOWN. Để đi đến trang tính trước đó, nhấn CTRL+PAGE UP."]
[]
[]
[{"$nulls":6},"Chọn một:"]
[]
[{"$nulls":6},{"$f":"IF($G$9=400,\"Đúng rồi!\",IF($G$9=530,\"Thử lại...\",IF($G$9=123,\"Không hẳn vậy...\",\" \")))","v":" "}]
[]
[]
[null,"Tổng của Số lượng mặt hàng đã bán"]
[null,{"v":17758,"d":"17,758"}]

{"sheet":"Tìm hiểu thêm","index":25,"n_rows":7,"n_cols":1,"rows_kept":7}
["Bạn làm tốt lắm. PivotTable không tuyệt sao?"]
["Tuy nhiên, chúng tôi khuyến khích bạn tiếp tục! Cần tìm hiểu thêm..."]
["Thông tin thêm về Pivot\nKhám phá thêm những thao tác bạn có thể thực hiện bằng cách đọc bài viết hữu ích này trên các PivotTable."]
["Giới thiệu về làm mới\nĐọc bài viết quan trọng này về cách làm mới PivotTable. "]
["Cộng đồng\nKết nối với những người yêu thích Excel khác. Họ có thể giúp bạn và bạn cũng có thể giúp họ."]
[]
[" "]